[Event "Early-Titled-Tuesday-Blitz-October-17-2023"]
[Site "Chess.com"]
[Date "2023.10.17"]
[Round "1"]
[White "Druid24"]
[Black "eightbyeightchess"]
[Result "1-0"]
[WhiteElo "2726"]
[BlackElo "2436"]
[TimeControl "180+1"]
[EndTime "8:06:16 PDT"]
[Termination "Druid24 won by checkmate"]

1. e4 {[%clk 0:02:58.2]} 1... e6 {[%clk 0:02:41.9]} 2. d4 {[%clk 0:02:55]} 2...
d5 {[%clk 0:02:40]} 3. Nc3 {[%clk 0:02:55.9]} 3... Nf6 {[%clk 0:02:39.6]} 4. e5
{[%clk 0:02:54.4]} 4... Nfd7 {[%clk 0:02:39.7]} 5. f4 {[%clk 0:02:54.9]} 5... c5
{[%clk 0:02:39.9]} 6. Nf3 {[%clk 0:02:55.4]} 6... Nc6 {[%clk 0:02:40.4]} 7. Ne2
{[%clk 0:02:54.5]} 7... b5 {[%clk 0:02:34.7]} 8. Be3 {[%clk 0:02:52.1]} 8... b4
{[%clk 0:02:23.4]} 9. g3 {[%clk 0:02:50.8]} 9... Qb6 {[%clk 0:02:12.3]} 10. Bg2
{[%clk 0:02:48.1]} 10... Ba6 {[%clk 0:01:57.1]} 11. c3 {[%clk 0:02:44.2]} 11...
bxc3 {[%clk 0:01:21.1]} 12. bxc3 {[%clk 0:02:44.2]} 12... Qb2 {[%clk 0:01:03.9]}
13. Kf2 {[%clk 0:02:37.3]} 13... cxd4 {[%clk 0:00:32.2]} 14. cxd4 {[%clk
0:02:32.1]} 14... Ba3 {[%clk 0:00:31.9]} 15. Rb1 {[%clk 0:02:22.8]} 15... Qxa2
{[%clk 0:00:25.5]} 16. Re1 {[%clk 0:02:07]} 16... O-O {[%clk 0:00:25]} 17. Qa4
{[%clk 0:02:00]} 17... Bxe2 {[%clk 0:00:17.8]} 18. Rxe2 {[%clk 0:01:57]} 18...
Qxb1 {[%clk 0:00:18]} 19. Qxc6 {[%clk 0:01:56.8]} 19... Nb6 {[%clk 0:00:17.9]}
20. f5 {[%clk 0:01:52.3]} 20... exf5 {[%clk 0:00:16.9]} 21. Nd2 {[%clk
0:01:47.7]} 21... Qc1 {[%clk 0:00:16]} 22. Qb5 {[%clk 0:01:42]} 22... Qc7 {[%clk
0:00:13.5]} 23. Bh3 {[%clk 0:01:26.6]} 23... a6 {[%clk 0:00:11.6]} 24. Qb3
{[%clk 0:01:26.6]} 24... Bc1 {[%clk 0:00:11.7]} 25. Bxf5 {[%clk 0:01:25.3]}
25... Bxd2 {[%clk 0:00:12.1]} 26. Bxd2 {[%clk 0:01:25.1]} 26... Nc4 {[%clk
0:00:12.2]} 27. Bf4 {[%clk 0:01:24.1]} 27... Rfb8 {[%clk 0:00:11.3]} 28. Qd3
{[%clk 0:01:24.1]} 28... Qa5 {[%clk 0:00:09.4]} 29. Bxh7+ {[%clk 0:01:24]} 29...
Kf8 {[%clk 0:00:09.2]} 30. e6 {[%clk 0:01:24.7]} 30... fxe6 {[%clk 0:00:08.8]}
31. Rxe6 {[%clk 0:01:20.7]} 31... Rb7 {[%clk 0:00:08.8]} 32. Bg6 {[%clk
0:01:18.8]} 32... Qa2+ {[%clk 0:00:06.5]} 33. Re2 {[%clk 0:01:17]} 33... Qb3
{[%clk 0:00:06.3]} 34. Qf5+ {[%clk 0:01:17.8]} 34... Kg8 {[%clk 0:00:06]} 35.
Qxd5+ {[%clk 0:01:18.1]} 35... Kh8 {[%clk 0:00:06]} 36. Qh5+ {[%clk 0:01:18.9]}
36... Kg8 {[%clk 0:00:06.1]} 37. Qh7+ {[%clk 0:01:19.8]} 37... Kf8 {[%clk
0:00:06.6]} 38. Qh8# {[%clk 0:01:20.7]} 1-0

[Event "Early-Titled-Tuesday-Blitz-October-17-2023"]
[Site "Chess.com"]
[Date "2023.10.17"]
[Round "1"]
[White "Chessbard1972"]
[Black "DenisQ"]
[Result "0-1"]
[WhiteElo "2353"]
[BlackElo "2642"]
[TimeControl "180+1"]
[EndTime "8:06:17 PDT"]
[Termination "DenisQ won by checkmate"]

1. d4 {[%clk 0:03:00.2]} 1... d5 {[%clk 0:02:59.2]} 2. c4 {[%clk 0:02:59.4]}
2... c6 {[%clk 0:02:59.1]} 3. Nf3 {[%clk 0:02:58.9]} 3... Nf6 {[%clk 0:02:58.7]}
4. Nc3 {[%clk 0:02:57.9]} 4... e6 {[%clk 0:02:57.7]} 5. Bg5 {[%clk 0:02:53.3]}
5... h6 {[%clk 0:02:57.2]} 6. Bh4 {[%clk 0:02:50.5]} 6... dxc4 {[%clk
0:02:56.5]} 7. e4 {[%clk 0:02:49.9]} 7... g5 {[%clk 0:02:56.1]} 8. e5 {[%clk
0:02:50.1]} 8... gxh4 {[%clk 0:02:51]} 9. exf6 {[%clk 0:02:49.8]} 9... b5 {[%clk
0:02:43.2]} 10. Ne5 {[%clk 0:02:48.5]} 10... Qxf6 {[%clk 0:02:40.8]} 11. a4
{[%clk 0:02:44.2]} 11... Bb4 {[%clk 0:02:21.9]} 12. Be2 {[%clk 0:02:39.5]} 12...
Bb7 {[%clk 0:02:13.7]} 13. Bf3 {[%clk 0:02:38]} 13... h3 {[%clk 0:02:05.1]} 14.
g3 {[%clk 0:02:22.8]} 14... Nd7 {[%clk 0:01:53.3]} 15. Bxc6 {[%clk 0:02:12.8]}
15... Bxc6 {[%clk 0:01:49.4]} 16. Nxc6 {[%clk 0:02:13]} 16... Bxc3+ {[%clk
0:01:47.8]} 17. bxc3 {[%clk 0:02:12.4]} 17... bxa4 {[%clk 0:01:38.3]} 18. Rxa4
{[%clk 0:02:05.3]} 18... Nb6 {[%clk 0:01:27.5]} 19. Rxa7 {[%clk 0:02:01.4]}
19... Rxa7 {[%clk 0:01:25.9]} 20. Nxa7 {[%clk 0:02:01.5]} 20... Nd5 {[%clk
0:01:20.8]} 21. Nb5 {[%clk 0:01:57.1]} 21... O-O {[%clk 0:01:18]} 22. Qg4+
{[%clk 0:01:49.4]} 22... Qg5 {[%clk 0:01:13.3]} 23. Qxg5+ {[%clk 0:01:38.5]}
23... hxg5 {[%clk 0:01:12.9]} 24. Ke2 {[%clk 0:01:34.6]} 24... Rb8 {[%clk
0:01:11.6]} 25. Nd6 {[%clk 0:01:21.6]} 25... Rb2+ {[%clk 0:00:54.7]} 26. Kf3
{[%clk 0:01:18.6]} 26... Rc2 {[%clk 0:00:52.9]} 27. Ne4 {[%clk 0:01:12]} 27...
g4+ {[%clk 0:00:48.1]} 28. Kxg4 {[%clk 0:01:08.3]} 28... f5+ {[%clk 0:00:48.2]}
29. Kxh3 {[%clk 0:01:08.5]} 29... fxe4 {[%clk 0:00:48.2]} 30. Re1 {[%clk
0:01:08.2]} 30... Nxc3 {[%clk 0:00:44.1]} 31. Ra1 {[%clk 0:01:08]} 31... Rxf2
{[%clk 0:00:43]} 32. Rc1 {[%clk 0:01:05.9]} 32... Nd5 {[%clk 0:00:33]} 33. Rxc4
{[%clk 0:01:04.2]} 33... e3 {[%clk 0:00:33.3]} 34. Rc1 {[%clk 0:00:58.6]} 34...
e2 {[%clk 0:00:33.2]} 35. Re1 {[%clk 0:00:58.5]} 35... Nc3 {[%clk 0:00:32.9]}
36. g4 {[%clk 0:00:55.7]} 36... Rf1 {[%clk 0:00:32.5]} 37. Rxe2 {[%clk
0:00:54.4]} 37... Nxe2 {[%clk 0:00:32.6]} 38. Kh4 {[%clk 0:00:54.1]} 38... Nxd4
{[%clk 0:00:31.8]} 39. Kg5 {[%clk 0:00:53.9]} 39... e5 {[%clk 0:00:31.8]} 40. h4
{[%clk 0:00:53.9]} 40... e4 {[%clk 0:00:32.1]} 41. Kg6 {[%clk 0:00:54.5]} 41...
e3 {[%clk 0:00:32.2]} 42. g5 {[%clk 0:00:55.4]} 42... e2 {[%clk 0:00:32.4]} 43.
h5 {[%clk 0:00:56.2]} 43... e1=Q {[%clk 0:00:32.7]} 44. h6 {[%clk 0:00:57.1]}
44... Qe8# {[%clk 0:00:32.2]} 0-1

[Event "Early-Titled-Tuesday-Blitz-October-17-2023"]
[Site "Chess.com"]
[Date "2023.10.17"]
[Round "1"]
[White "K_A_S_T_O_R"]
[Black "imdvb6307"]
[Result "1-0"]
[WhiteElo "2859"]
[BlackElo "2498"]
[TimeControl "180+1"]
[EndTime "8:06:21 PDT"]
[Termination "K_A_S_T_O_R won on time"]

1. e4 {[%clk 0:03:00.9]} 1... Nc6 {[%clk 0:02:57.6]} 2. Nf3 {[%clk 0:03:00.5]}
2... d6 {[%clk 0:02:57.4]} 3. d4 {[%clk 0:02:59.6]} 3... Nf6 {[%clk 0:02:57.1]}
4. c3 {[%clk 0:02:56.2]} 4... g6 {[%clk 0:02:55.8]} 5. Nbd2 {[%clk 0:02:55.4]}
5... Bg7 {[%clk 0:02:55.5]} 6. Be2 {[%clk 0:02:55.9]} 6... O-O {[%clk
0:02:55.3]} 7. O-O {[%clk 0:02:56.5]} 7... e5 {[%clk 0:02:49.3]} 8. dxe5 {[%clk
0:02:56.5]} 8... dxe5 {[%clk 0:02:25]} 9. Qc2 {[%clk 0:02:53.9]} 9... Qe7 {[%clk
0:01:55.9]} 10. b4 {[%clk 0:02:50.5]} 10... a6 {[%clk 0:01:54.8]} 11. a4 {[%clk
0:02:50.1]} 11... Bg4 {[%clk 0:01:48.5]} 12. Ba3 {[%clk 0:02:48.5]} 12... b5
{[%clk 0:01:19.5]} 13. axb5 {[%clk 0:02:47.2]} 13... axb5 {[%clk 0:01:19.6]} 14.
Bxb5 {[%clk 0:02:47.1]} 14... Bd7 {[%clk 0:00:42.5]} 15. Be2 {[%clk 0:02:42.2]}
15... Rfe8 {[%clk 0:00:37]} 16. Nc4 {[%clk 0:02:41.8]} 16... Qd8 {[%clk
0:00:15.8]} 17. Rfd1 {[%clk 0:02:33.6]} 17... Qc8 {[%clk 0:00:14.4]} 18. b5
{[%clk 0:02:30]} 18... Na5 {[%clk 0:00:13.3]} 19. Ncxe5 {[%clk 0:02:28.8]} 19...
Be6 {[%clk 0:00:12.4]} 20. c4 {[%clk 0:02:20.2]} 20... Ng4 {[%clk 0:00:09.7]}
21. Bb2 {[%clk 0:02:19.3]} 21... Nxe5 {[%clk 0:00:08.1]} 22. Bxe5 {[%clk
0:02:19.6]} 22... Bxe5 {[%clk 0:00:03.1]} 23. Nxe5 {[%clk 0:02:19.1]} 23... Nb7
{[%clk 0:00:02.5]} 24. c5 {[%clk 0:02:14.4]} 24... Rxa1 {[%clk 0:00:01.7]} 25.
Rxa1 {[%clk 0:02:13.6]} 25... Qd8 {[%clk 0:00:01.8]} 26. Nc6 {[%clk 0:02:04.7]}
26... Qf6 {[%clk 0:00:01.6]} 27. e5 {[%clk 0:02:02.4]} 27... Qg5 {[%clk
0:00:01.6]} 28. Qc1 {[%clk 0:01:57.4]} 28... Qxc1+ {[%clk 0:00:01.1]} 29. Rxc1
{[%clk 0:01:56.8]} 29... Nd8 {[%clk 0:00:01.7]} 30. Nd4 {[%clk 0:01:49.2]} 30...
Bd5 {[%clk 0:00:01.7]} 31. f4 {[%clk 0:01:49.7]} 31... Ne6 {[%clk 0:00:01.9]}
32. Nxe6 {[%clk 0:01:48.6]} 32... fxe6 {[%clk 0:00:02]} 33. Bc4 {[%clk
0:01:44.5]} 33... Bxc4 {[%clk 0:00:01.8]} 34. Rxc4 {[%clk 0:01:45.4]} 34... Rb8
{[%clk 0:00:02.3]} 35. Rb4 {[%clk 0:01:45.3]} 35... Kf7 {[%clk 0:00:02.6]} 36.
b6 {[%clk 0:01:43.2]} 36... cxb6 {[%clk 0:00:02.9]} 37. cxb6 {[%clk 0:01:43.7]}
37... Rb7 {[%clk 0:00:02.9]} 38. Kf2 {[%clk 0:01:43.1]} 38... Ke7 {[%clk
0:00:03]} 39. Ke3 {[%clk 0:01:43.7]} 39... Kd7 {[%clk 0:00:03.1]} 40. Kf3 {[%clk
0:01:44]} 40... Kc6 {[%clk 0:00:03.3]} 41. Kg4 {[%clk 0:01:44.4]} 41... Kc5
{[%clk 0:00:03.4]} 42. Rb2 {[%clk 0:01:43.6]} 42... h6 {[%clk 0:00:03.7]} 43. h4
{[%clk 0:01:43.7]} 43... Kc6 {[%clk 0:00:02.5]} 44. h5 {[%clk 0:01:43.8]} 44...
gxh5+ {[%clk 0:00:01.9]} 45. Kxh5 {[%clk 0:01:44]} 1-0

[Event "Early-Titled-Tuesday-Blitz-October-17-2023"]
[Site "Chess.com"]
[Date "2023.10.17"]
[Round "1"]
[White "verrbaa"]
[Black "atbenina64"]
[Result "1-0"]
[WhiteElo "2460"]
[BlackElo "2712"]
[TimeControl "180+1"]
[EndTime "8:06:21 PDT"]
[Termination "verrbaa won by resignation"]

1. e4 {[%clk 0:02:57.9]} 1... c5 {[%clk 0:01:20.7]} 2. Nf3 {[%clk 0:02:56]} 2...
d6 {[%clk 0:01:20]} 3. g3 {[%clk 0:02:17.3]} 3... Nc6 {[%clk 0:01:17.5]} 4. Bg2
{[%clk 0:02:16.7]} 4... g6 {[%clk 0:01:13.3]} 5. O-O {[%clk 0:01:46.2]} 5... Bg7
{[%clk 0:01:13.5]} 6. c3 {[%clk 0:01:40.6]} 6... Nf6 {[%clk 0:01:09.6]} 7. Re1
{[%clk 0:01:39.5]} 7... O-O {[%clk 0:01:03.7]} 8. d4 {[%clk 0:01:28.8]} 8...
cxd4 {[%clk 0:01:00.1]} 9. Nxd4 {[%clk 0:01:28.6]} 9... Bd7 {[%clk 0:00:49.9]}
10. h3 {[%clk 0:01:14.6]} 10... Qb6 {[%clk 0:00:40.3]} 11. Nb3 {[%clk
0:01:12.7]} 11... a5 {[%clk 0:00:35.9]} 12. Be3 {[%clk 0:01:12.2]} 12... Qa6
{[%clk 0:00:33.8]} 13. a4 {[%clk 0:01:12.1]} 13... Ne5 {[%clk 0:00:28.1]} 14.
N1d2 {[%clk 0:01:07.4]} 14... b5 {[%clk 0:00:22.3]} 15. Bf1 {[%clk 0:00:52.3]}
15... Qb7 {[%clk 0:00:15.1]} 16. axb5 {[%clk 0:00:52.3]} 16... a4 {[%clk
0:00:15.5]} 17. Nd4 {[%clk 0:00:52.1]} 17... Rfc8 {[%clk 0:00:10.8]} 18. f4
{[%clk 0:00:47.6]} 18... Nxe4 {[%clk 0:00:06.3]} 19. Nxe4 {[%clk 0:00:46.1]}
19... Qxe4 {[%clk 0:00:05.9]} 20. Bg2 {[%clk 0:00:46.6]} 20... Qd3 {[%clk
0:00:03.8]} 21. fxe5 {[%clk 0:00:46.4]} 21... Qxd1 {[%clk 0:00:03.7]} 22. Rexd1
{[%clk 0:00:44.3]} 22... Rab8 {[%clk 0:00:04.6]} 23. exd6 {[%clk 0:00:40.9]}
23... e5 {[%clk 0:00:04.4]} 24. Nc6 {[%clk 0:00:40.2]} 24... Rxb5 {[%clk
0:00:05.1]} 25. Ne7+ {[%clk 0:00:40]} 1-0

[Event "Early-Titled-Tuesday-Blitz-October-17-2023"]
[Site "Chess.com"]
[Date "2023.10.17"]
[Round "1"]
[White "schack_vit"]
[Black "suyu28"]
[Result "0-1"]
[WhiteElo "2424"]
[BlackElo "2717"]
[TimeControl "180+1"]
[EndTime "8:06:21 PDT"]
[Termination "suyu28 won by resignation"]

1. c4 {[%clk 0:03:00.9]} 1... Nf6 {[%clk 0:02:56.8]} 2. g3 {[%clk 0:03:00.7]}
2... g6 {[%clk 0:02:56.8]} 3. Bg2 {[%clk 0:03:01.1]} 3... Bg7 {[%clk 0:02:57.5]}
4. Nf3 {[%clk 0:03:00.3]} 4... O-O {[%clk 0:02:58.1]} 5. O-O {[%clk 0:03:00.9]}
5... d6 {[%clk 0:02:58.2]} 6. Nc3 {[%clk 0:03:00.3]} 6... e5 {[%clk 0:02:58]} 7.
b4 {[%clk 0:03:00.6]} 7... Nc6 {[%clk 0:02:47.2]} 8. b5 {[%clk 0:03:00.5]} 8...
Nd4 {[%clk 0:02:47.5]} 9. a4 {[%clk 0:02:53.5]} 9... Re8 {[%clk 0:02:45.4]} 10.
Rb1 {[%clk 0:02:46]} 10... Bg4 {[%clk 0:02:41.2]} 11. Ng5 {[%clk 0:02:24.8]}
11... h6 {[%clk 0:02:36.8]} 12. h3 {[%clk 0:02:20.7]} 12... Bf5 {[%clk
0:02:16.1]} 13. Nge4 {[%clk 0:02:15.8]} 13... Nxe4 {[%clk 0:01:48.7]} 14. Nxe4
{[%clk 0:02:16.7]} 14... Be6 {[%clk 0:01:45.7]} 15. e3 {[%clk 0:01:54]} 15...
Nf5 {[%clk 0:01:45.1]} 16. d3 {[%clk 0:01:52.3]} 16... Qd7 {[%clk 0:01:32.4]}
17. Nc3 {[%clk 0:01:38.7]} 17... c6 {[%clk 0:01:29.5]} 18. a5 {[%clk 0:01:20.8]}
18... Ne7 {[%clk 0:01:11.4]} 19. a6 {[%clk 0:01:18.3]} 19... d5 {[%clk
0:00:41.9]} 20. axb7 {[%clk 0:01:17.6]} 20... Qxb7 {[%clk 0:00:42.8]} 21. bxc6
{[%clk 0:01:17.2]} 21... Qxc6 {[%clk 0:00:43.7]} 22. cxd5 {[%clk 0:01:06.1]}
22... Nxd5 {[%clk 0:00:42.2]} 23. Bd2 {[%clk 0:00:56.6]} 23... Qd7 {[%clk
0:00:34.6]} 24. Ne4 {[%clk 0:00:54.8]} 24... Rec8 {[%clk 0:00:31.5]} 25. Kh2
{[%clk 0:00:51.4]} 25... f5 {[%clk 0:00:30.6]} 26. Qa4 {[%clk 0:00:25.8]} 26...
Qxa4 {[%clk 0:00:24.9]} 0-1

[Event "Early-Titled-Tuesday-Blitz-October-17-2023"]
[Site "Chess.com"]
[Date "2023.10.17"]
[Round "1"]
[White "Shivananda1964"]
[Black "Maitreia"]
[Result "0-1"]
[WhiteElo "2404"]
[BlackElo "2687"]
[TimeControl "180+1"]
[EndTime "8:06:21 PDT"]
[Termination "Maitreia won on time"]

1. e4 {[%clk 0:02:58.3]} 1... c5 {[%clk 0:02:58.9]} 2. Nf3 {[%clk 0:02:57.5]}
2... g6 {[%clk 0:02:59.5]} 3. c3 {[%clk 0:02:56]} 3... Nf6 {[%clk 0:02:59.3]} 4.
e5 {[%clk 0:02:54.6]} 4... Nd5 {[%clk 0:02:59.9]} 5. g3 {[%clk 0:02:54.8]} 5...
Nc6 {[%clk 0:02:59.7]} 6. Bg2 {[%clk 0:02:54.8]} 6... Bg7 {[%clk 0:03:00.4]} 7.
O-O {[%clk 0:02:55.1]} 7... O-O {[%clk 0:03:00.2]} 8. Re1 {[%clk 0:02:55.8]}
8... d6 {[%clk 0:02:58.9]} 9. exd6 {[%clk 0:02:53.7]} 9... Qxd6 {[%clk
0:02:59.8]} 10. d3 {[%clk 0:02:50.8]} 10... b6 {[%clk 0:02:57.2]} 11. Na3 {[%clk
0:02:50.7]} 11... Bb7 {[%clk 0:02:56.9]} 12. Nc4 {[%clk 0:02:49.9]} 12... Qc7
{[%clk 0:02:56.4]} 13. a4 {[%clk 0:02:43.5]} 13... Rad8 {[%clk 0:02:54.6]} 14.
Qe2 {[%clk 0:02:42.6]} 14... h6 {[%clk 0:02:50.1]} 15. h4 {[%clk 0:02:42.3]}
15... Rfe8 {[%clk 0:02:45.8]} 16. h5 {[%clk 0:02:39.7]} 16... g5 {[%clk
0:02:46.1]} 17. Bxg5 {[%clk 0:01:36]} 17... hxg5 {[%clk 0:02:45.5]} 18. Nxg5
{[%clk 0:01:36]} 18... Nf6 {[%clk 0:02:36.2]} 19. f4 {[%clk 0:01:11.2]} 19...
Nh7 {[%clk 0:01:43.5]} 20. Nxf7 {[%clk 0:00:29.9]} 20... Kxf7 {[%clk 0:01:34.4]}
21. Qe6+ {[%clk 0:00:09.5]} 21... Kf8 {[%clk 0:01:34.6]} 22. Qg6 {[%clk
0:00:04.6]} 22... Kg8 {[%clk 0:01:19.8]} 23. h6 {[%clk 0:00:02.4]} 23... e5
{[%clk 0:01:19.9]} 24. hxg7 {[%clk 0:00:02.1]} 24... Qxg7 {[%clk 0:01:19.6]} 25.
Qxg7+ {[%clk 0:00:01.7]} 25... Kxg7 {[%clk 0:01:20.5]} 26. fxe5 {[%clk
0:00:01.8]} 26... Ba8 {[%clk 0:00:54.1]} 27. Nd6 {[%clk 0:00:02.4]} 27... Re6
{[%clk 0:00:53.5]} 28. d4 {[%clk 0:00:02.7]} 28... cxd4 {[%clk 0:00:53.6]} 29.
cxd4 {[%clk 0:00:02.6]} 29... Nxd4 {[%clk 0:00:54.2]} 30. Bxa8 {[%clk
0:00:02.2]} 30... Rxa8 {[%clk 0:00:55.1]} 0-1

[Event "Early-Titled-Tuesday-Blitz-October-17-2023"]
[Site "Chess.com"]
[Date "2023.10.17"]
[Round "1"]
[White "seopie"]
[Black "ErikRonka"]
[Result "1-0"]
[WhiteElo "2856"]
[BlackElo "2495"]
[TimeControl "180+1"]
[EndTime "8:06:27 PDT"]
[Termination "seopie won by checkmate"]

1. b3 {[%clk 0:03:00.9]} 1... d5 {[%clk 0:02:58.8]} 2. Bb2 {[%clk 0:03:01.1]}
2... Bg4 {[%clk 0:02:59.6]} 3. h3 {[%clk 0:02:59]} 3... Bh5 {[%clk 0:02:59.5]}
4. g4 {[%clk 0:02:57.2]} 4... Bg6 {[%clk 0:02:59.6]} 5. Nf3 {[%clk 0:02:57.6]}
5... Nd7 {[%clk 0:02:57.7]} 6. Nh4 {[%clk 0:02:54.8]} 6... e5 {[%clk 0:02:55.5]}
7. Nxg6 {[%clk 0:02:54.9]} 7... hxg6 {[%clk 0:02:56.4]} 8. Bg2 {[%clk
0:02:55.5]} 8... c6 {[%clk 0:02:54.9]} 9. e3 {[%clk 0:02:55.1]} 9... Bd6 {[%clk
0:02:48.9]} 10. d3 {[%clk 0:02:54.7]} 10... Qe7 {[%clk 0:02:48.9]} 11. Nd2
{[%clk 0:02:54.7]} 11... Ba3 {[%clk 0:02:46.8]} 12. Qc1 {[%clk 0:02:54.7]} 12...
Bxb2 {[%clk 0:02:46.9]} 13. Qxb2 {[%clk 0:02:55.6]} 13... a5 {[%clk 0:02:40.8]}
14. a3 {[%clk 0:02:54.6]} 14... Ngf6 {[%clk 0:02:37.6]} 15. O-O-O {[%clk
0:02:43.2]} 15... O-O {[%clk 0:02:17.1]} 16. Rde1 {[%clk 0:02:35.2]} 16... b5
{[%clk 0:02:11.4]} 17. f4 {[%clk 0:02:34.7]} 17... Rfe8 {[%clk 0:01:58.5]} 18.
Rhf1 {[%clk 0:02:30]} 18... exf4 {[%clk 0:01:53.2]} 19. Rxf4 {[%clk 0:02:29.4]}
19... Qd6 {[%clk 0:01:42]} 20. Rf2 {[%clk 0:02:29.2]} 20... a4 {[%clk
0:01:20.5]} 21. b4 {[%clk 0:02:28.8]} 21... c5 {[%clk 0:01:20.9]} 22. bxc5
{[%clk 0:02:27.3]} 22... Qxc5 {[%clk 0:01:15.8]} 23. Rfe2 {[%clk 0:02:24.2]}
23... Rec8 {[%clk 0:01:10.8]} 24. Nf3 {[%clk 0:02:20]} 24... Rab8 {[%clk
0:00:58.7]} 25. Qb4 {[%clk 0:02:17.4]} 25... Qb6 {[%clk 0:00:49.6]} 26. g5
{[%clk 0:02:10.4]} 26... Nc5 {[%clk 0:00:47.1]} 27. Kb1 {[%clk 0:02:02.9]} 27...
Nfd7 {[%clk 0:00:46.2]} 28. Nd4 {[%clk 0:02:02.4]} 28... Na6 {[%clk 0:00:44.6]}
29. Qe7 {[%clk 0:02:02.1]} 29... b4 {[%clk 0:00:42.2]} 30. axb4 {[%clk
0:01:34.3]} 30... Nxb4 {[%clk 0:00:42.2]} 31. Ka1 {[%clk 0:01:33.9]} 31... Nc6
{[%clk 0:00:30]} 32. Qa3 {[%clk 0:01:31.7]} 32... Nxd4 {[%clk 0:00:30.4]} 33.
exd4 {[%clk 0:01:32.1]} 33... Qxd4+ {[%clk 0:00:29.3]} 34. Ka2 {[%clk 0:01:29]}
34... Rc3 {[%clk 0:00:09.7]} 35. Re8+ {[%clk 0:01:28.5]} 35... Rxe8 {[%clk
0:00:08.8]} 36. Rxe8+ {[%clk 0:01:28.2]} 36... Kh7 {[%clk 0:00:09.5]} 37. Qc1
{[%clk 0:01:26.8]} 37... Qc5 {[%clk 0:00:09.2]} 38. Kb1 {[%clk 0:01:13.4]} 38...
Nb6 {[%clk 0:00:07]} 39. Qe1 {[%clk 0:01:03.8]} 39... a3 {[%clk 0:00:06.8]} 40.
Qh4# {[%clk 0:01:03.2]} 1-0

[Event "Early-Titled-Tuesday-Blitz-October-17-2023"]
[Site "Chess.com"]
[Date "2023.10.17"]
[Round "1"]
[White "Irina_Mikhaylova"]
[Black "blitzo_vich"]
[Result "1/2-1/2"]
[WhiteElo "2307"]
[BlackElo "2607"]
[TimeControl "180+1"]
[EndTime "8:06:28 PDT"]
[Termination "Game drawn by repetition"]

1. Nf3 {[%clk 0:02:59.5]} 1... b6 {[%clk 0:02:58.6]} 2. c4 {[%clk 0:02:59.5]}
2... Bb7 {[%clk 0:02:58]} 3. Nc3 {[%clk 0:02:59]} 3... Nf6 {[%clk 0:02:57]} 4.
d4 {[%clk 0:02:59.1]} 4... e6 {[%clk 0:02:56.8]} 5. a3 {[%clk 0:02:59.6]} 5...
g6 {[%clk 0:02:51.5]} 6. Qc2 {[%clk 0:02:58]} 6... Bg7 {[%clk 0:02:51.4]} 7. e4
{[%clk 0:02:58.5]} 7... O-O {[%clk 0:02:50.9]} 8. Bd3 {[%clk 0:02:49.1]} 8... d6
{[%clk 0:02:46.3]} 9. Bg5 {[%clk 0:02:46.3]} 9... h6 {[%clk 0:02:38.6]} 10. Bh4
{[%clk 0:02:46.5]} 10... Nbd7 {[%clk 0:02:37.4]} 11. e5 {[%clk 0:02:38.9]} 11...
dxe5 {[%clk 0:02:34.6]} 12. dxe5 {[%clk 0:02:38.1]} 12... Bxf3 {[%clk
0:02:30.8]} 13. exf6 {[%clk 0:02:38.2]} 13... Bxf6 {[%clk 0:01:57.1]} 14. Bxf6
{[%clk 0:02:34.8]} 14... Qxf6 {[%clk 0:01:57.2]} 15. gxf3 {[%clk 0:02:34.8]}
15... Ne5 {[%clk 0:01:57.1]} 16. O-O-O {[%clk 0:02:17.3]} 16... Nxf3 {[%clk
0:01:50.9]} 17. Be4 {[%clk 0:02:14.8]} 17... Rad8 {[%clk 0:01:49.7]} 18. Rxd8
{[%clk 0:02:07.8]} 18... Rxd8 {[%clk 0:01:50.6]} 19. Rd1 {[%clk 0:02:07.5]}
19... Qf4+ {[%clk 0:01:45.7]} 20. Kb1 {[%clk 0:01:57.7]} 20... Rxd1+ {[%clk
0:01:42.8]} 21. Qxd1 {[%clk 0:01:47]} 21... Nd2+ {[%clk 0:01:42]} 22. Ka2 {[%clk
0:01:26.8]} 22... Nxe4 {[%clk 0:01:41.5]} 23. Qd8+ {[%clk 0:01:27.4]} 23... Kh7
{[%clk 0:01:34.7]} 24. Nxe4 {[%clk 0:01:27.2]} 24... Qxe4 {[%clk 0:01:33.7]} 25.
Qxc7 {[%clk 0:01:27.8]} 25... Kg7 {[%clk 0:01:27.6]} 26. b4 {[%clk 0:01:26.3]}
26... Qc2+ {[%clk 0:01:26.4]} 27. Ka1 {[%clk 0:01:26.1]} 27... Qxf2 {[%clk
0:01:12.8]} 28. c5 {[%clk 0:01:26]} 28... bxc5 {[%clk 0:01:08.1]} 29. bxc5
{[%clk 0:01:26.2]} 29... Qe1+ {[%clk 0:01:07.7]} 30. Kb2 {[%clk 0:01:23.9]}
30... Qd2+ {[%clk 0:01:07.8]} 31. Kb3 {[%clk 0:01:24.1]} 31... Qd3+ {[%clk
0:01:06.1]} 32. Kb2 {[%clk 0:01:24.2]} 32... Qb5+ {[%clk 0:01:05.6]} 33. Kc3
{[%clk 0:01:21.6]} 33... Qa4 {[%clk 0:01:02.4]} 34. Kb2 {[%clk 0:01:15.3]} 34...
Qd4+ {[%clk 0:00:58.2]} 35. Kb3 {[%clk 0:01:15.1]} 35... e5 {[%clk 0:00:57]} 36.
c6 {[%clk 0:01:14.6]} 36... e4 {[%clk 0:00:56.2]} 37. Qd7 {[%clk 0:01:14.2]}
37... Qb6+ {[%clk 0:00:53.5]} 38. Kc4 {[%clk 0:01:09.4]} 38... Qa6+ {[%clk
0:00:51.9]} 39. Kd5 {[%clk 0:01:07.4]} 39... Qd3+ {[%clk 0:00:51.4]} 40. Kc5
{[%clk 0:01:05.5]} 40... Qxa3+ {[%clk 0:00:50.9]} 41. Kd5 {[%clk 0:01:05.3]}
41... Qd3+ {[%clk 0:00:44.6]} 42. Kc5 {[%clk 0:01:05.4]} 42... Qe3+ {[%clk
0:00:44.9]} 43. Kd5 {[%clk 0:01:03.2]} 43... Qd3+ {[%clk 0:00:32.3]} 44. Kc5
{[%clk 0:01:02.8]} 44... Qa3+ {[%clk 0:00:31.6]} 45. Kd5 {[%clk 0:01:02.7]}
45... Qd3+ {[%clk 0:00:28.8]} 1/2-1/2